{"text_format":"1","workbook":"xlsx","n_sheets":10,"sheets":["Notices","Investments Form","Investments Assumptions","Income Statement Form","Income Statement Assumptions","Operating Assumptions Form","Cash Flow Statement Form","Cash Flow Statement Assumptions"," Recapture of Investment Form","Recapture of Inv Assumptions"],"not_rendered":{"charts":0,"images":0,"macros":1,"external_links":0,"defined_names":63,"comments":0,"pivot_tables":0},"unopened":[],"bounds":{"document_bytes":16777216,"sheet_cells":100000,"rows_first":2000,"rows_last":500,"rows_between":2000,"halvings":0,"cell_chars":16384,"cell_head_chars":4096},"cells_cut":0,"cells_raw":0,"read":"whole","date_system":"1900"}

{"sheet":"Notices","index":0,"n_rows":10,"n_cols":1,"rows_kept":10,"cut":false,"hidden":false,"merged":[[6,0,6,9],[7,0,7,9],[8,0,8,9],[9,0,9,9],[0,0,0,9],[1,0,1,9],[2,0,2,9],[3,0,3,9],[4,0,4,9],[5,0,5,9]]}
["NOTICES"]
[]
["PRIVACY ACT"]
["Authority: The authority to collect information on the attached form is derived from 54 U.S.C. 1019, Concessions and Commercial Use Authorizations.\n\nPurpose: The purposes of the system are to assist NPS employees in managing the National Park Service Commercial Services program allowing commercial uses within a unit of the National Park System to ensure that business activities are conducted in a manner that complies with Federal laws and regulations and to evaluate offerors who desire to conduct or are conducting business within units of the National Park System.\n\nRoutine Uses:  In addition to those disclosures generally permitted under 5 U.S.C.552a(b) of the Privacy Act, records or information contained in this system may be disclosed outside the National Park Service as a routine use pursuant to 5 U.S.C. 552a(b)(3) to other Federal, State, territorial, local, tribal, or foreign agencies and other authorized organizations and individuals based on an authorized routine use when the disclosure is compatible with the purpose for which the records were compiled as described under the system of records notice INTERIOR/NPS-15, Concessions Management Files 48 FR 51696 (November 10, 1983); Modification published 73 FR 63992 (October 28, 2008) and 86 FR 50156 (September 7, 2021). This notice can be found at https://www.doi.gov/privacy/sorn. \n\nDisclosure: Providing your information is voluntary, however, failure to provide the requested information may impede the evaluation of your proposal in response to available concession opportunities."]
[]
["PAPERWORK REDUCTION ACT STATEMENT"]
["We collect this information under the authority of Title IV of the National Parks Omnibus Management Act of 1998 (Pub. L. 105–391).  We use this information to evaluate a concession proposal.  Your response is required to obtain or retain a benefit.  Your response is required to obtain or retain a benefit.  We may not collect or sponsor and you are not required to respond to a collection of information unless it displays a currently valid OMB control number.  OMB has approved this collection of information and assigned Control No. 1024-0029."]
[]
["ESTIMATED BURDEN STATEMENT"]
["We estimate that it will take you 10 hours to complete this form, including time to review instructions, gather and maintain data, and complete and review the form.  You may send comments on the burden estimate or any aspect of this form to the Information Collection Clearance Officer, National Park Service, 1201 Oakridge Drive, Fort Collins, CO 80550.  Please do not send your completed form to this address."]

{"sheet":"Investments Form","index":1,"n_rows":68,"n_cols":5,"rows_kept":68,"cut":false,"hidden":false,"merged":[]}
["INITIAL INVESTMENTS AND START-UP EXPENSES FORM"]
[]
["Grey Cells Are Input Cells"]
[]
["Name of Offeror"]
[]
["CONCID","OLYM001-27"]
[]
["Assets "]
["Existing Assets"]
["Assets necessary to the operation of the Concession, already owned by the Offeror, that will be allocated to the "]
["operation of the Draft Contract."]
[]
[null,"Leasehold Surrender Interest Value"]
[null,"Real Property (not within the Park)"]
[null,"Personal  Property"]
[null,"Inventory and Supplies"]
[null,"Other (describe)"]
[]
[null,null,"Subtotal",{"$f":"SUM(D14:D18)","v":0}]
[]
["Planned Asset Acquisition"]
["Assets necessary to Operate the Concession, that will be acquired by the Offeror if awarded the Draft Contract."]
[]
[null,"Leasehold Surrender Interest Value"]
[null,"Real Property (not within the Park)"]
[null,"Personal Property"]
[null,"Inventory and Supplies"]
[null,"Other (describe)"]
[]
[null,null,"Subtotal",{"$f":"SUM(D25:D29)","v":0}]
[]
[null,null,null,"Total",{"$f":"D20+D31","v":0}]
[]
["Other"]
[]
[null,"Start-Up Expenses"]
[null,"Working Capital"]
[null,"Deferred Maintenance (Years 1-2)"]
[null,"Concession Facility Improvement Program (Years 1-2)"]
[null,"Other (describe)"]
[]
[null,null,null,"Total",{"$f":"SUM(D37:D41)","v":0}]
[]
[null,null,null,"Total Initial Investments and Start-up Expenses",{"$f":"+E43+E33","v":0}]
[]
["Notes"]
["1) Formulas included in this form are provided by the NPS as guidance only. The Offeror is responsible for its financial "]
["projections and their accuracy."]
["2) Yellow cells represent categories that need to be explained on the \"Investments Assumptions\" worksheet."]
["3) All Offerors must include their estimate of the value of all property intended, whether planned for acquisition or currently "]
["owned, for use in the Draft Contract."]
["4) The items indicated above are the estimated planned expenditures for initial investment, defined as one-time costs in either "]
["the year prior to or the first year after the start of the Draft Contract. "]
["Exceptions include DM (Years 1-2) and CFIP investment (Years 1-2)."]
["5) Expenditures entered in this form should be in addition to that of typical annual capital investments and operating expenses "]
["of the first year of the Draft Contract. "]
["6) Expenditures entered into this form should not be included in the proforma income statement. "]
["7) Expenditures entered in this form should be included in the cash flow proforma as capital expenditures in either the year prior "]
["to or the first year after the start of the Draft Contract. "]
[]
["Definitions"]
["Start-up Expenses"]
["One-time expenses incurred prior to the beginning of the contract, or during the first year of the contract, if needed, to implement "]
["your proposal."]
["Working Capital"]
["Additional funds for working capital current assets such as pre-paid expenses, contingencies, and other necessary cash flow "]
["requirements. This should not be confused with Net Working Capital (current assets-current liabilities). "]

{"sheet":"Investments Assumptions","index":2,"n_rows":38,"n_cols":2,"rows_kept":38,"cut":false,"hidden":false,"merged":[]}
["INITIAL INVESTMENTS AND START-UP EXPENSES ASSUMPTIONS"]
[]
["Grey Cells Are Input Cells"]
[]
["Name of Offeror"]
[]
["CONCID","OLYM001-27"]
[]
["Assets "]
["Existing Assets"]
["Assets necessary to the operation of the Concession already owned by the Offeror that will be allocated "]
["to the operation of the Draft Contract. "]
[]
["Leasehold Surrender Interest Value","Describe"]
["Real Property (not within the Park)","Describe"]
["Personal Property","Describe"]
["Inventory and Supplies","Describe"]
["Other (describe)","Describe"]
[]
["Planned Asset Acquisition"]
["Assets necessary to Operate the Concession that will be acquired by the Offeror if awarded the Draft Contract."]
[]
["Possessory Interest/Leasehold Surrender Interest Value","Describe"]
["Real Property (not within the Park)","Describe"]
["Personal Property","Describe"]
["Inventory and Supplies","Describe"]
["Other (describe)","Describe"]
[]
["Other"]
["Start-Up Expenses","Describe"]
["Working Capital","Describe"]
["Deferred Maintenance ","Describe"]
["Concession Facility Improvement Program (CFIP)","Describe"]
["Other (describe)","Describe"]
[]
["Notes"]
["1) In the description sections of this form, please provide an explanation of sufficient detail to allow a reviewer to fully "]
["understand how the estimates were determined. "]

{"sheet":"Income Statement Form","index":3,"n_rows":149,"n_cols":12,"rows_kept":149,"cut":false,"hidden":false,"merged":[]}
["INCOME STATEMENT FORM"]
[]
["Grey Cells Are Input Cells"]
[]
["Name of Offeror"]
[]
["CONCID","OLYM001-27"]
[]
["Prospective Income Statement"]
[]
[null,"2027 (P)",2028,{"$f":"C11+1","v":2029},2030,2031,2032,2033,2034,2035,2036,"2037 (P)"]
["Revenue"]
["Lodging"]
["    Kalaloch Lodge"]
["Total Lodging Revenue",{"$f":"+SUM(B14)","v":0},{"$f":"+SUM(C14)","v":0},0,0,0,0,0,0,0,0,0]
["Group Campsite"]
["Group Campsite"]
["Total Group Campsite Revenue",{"$f":"+B17","v":0},{"$f":"+SUM(C17)","v":0},{"$f":"+SUM(D17)","v":0},{"$f":"+SUM(E17)","v":0},{"$f":"+SUM(F17)","v":0},{"$f":"+SUM(G17)","v":0},{"$f":"+SUM(H17)","v":0},{"$f":"+SUM(I17)","v":0},{"$f":"+SUM(J17)","v":0},{"$f":"+SUM(K17)","v":0},{"$f":"+SUM(L17)","v":0}]
["Food and Beverage"]
["Kalaloch Lodge Restaurant"]
["Lounge"]
["Total Food & Beverage",{"$f":"SUM(B20:B21)","v":0},0,0,0,0,0,0,0,0,0,0]
["Retail "]
["    Gift Shop"]
["    Mercantile"]
["Total Retail Revenue",{"$f":"SUM(B24:B25)","v":0},0,0,0,0,0,0,0,0,0,0]
["Authorized Services (specify)"]
["Authorized Services (specify)"]
["Other (specify) "]
["Other (specify) "]
["     Total Other Revenue",{"$f":"SUM(B27:B30)","v":0},{"$f":"SUM(C27:C30)","v":0},0,0,0,0,0,0,0,0,0]
[]
["Total Gross Revenue",{"$f":"SUM(B15,B18,B22,B26,B31)","v":0},{"$f":"SUM(C15,C18,C22,C26,C31)","v":0},0,0,0,0,0,0,0,0,0]
["Total Deductions"]
["Total Gross Receipts (if Different)",{"$f":"B33-B34","v":0},{"$f":"C33-C34","v":0},0,0,0,0,0,0,0,0,{"$f":"L33-L34","v":0}]
[]
["Cost of Sales"]
["Group Campsite"]
["Food and Beverage"]
["Retail "]
["Authorized Services (specify)"]
["Other (specify)"]
[]
["Total Cost of Sales",{"$f":"SUM(B38:B42)","v":0},0,0,0,0,0,0,0,0,0,{"$f":"SUM(L38:L42)","v":0}]
[]
["Gross Profit",{"$f":"B33-B44","v":0},0,0,0,0,0,0,0,0,0,{"$f":"L33-L44","v":0}]
[]
["Expenses"]
[]
["Direct Expenses"]
["Lodging"]
["Salaries and Wages"]
["Payroll Taxes and Benefits"]
["Other Departmental Expenses"]
["Total Lodging Expenses",{"$f":"+SUM(B52:B54)","v":0},{"$f":"+SUM(C52:C54)","v":0},0,0,0,0,0,0,0,0,{"$f":"+SUM(L52:L54)","v":0}]
[]
["Group Campsite"]
["Salaries and Wages"]
["Payroll Taxes and Benefits"]
["Other Departmental Expenses"]
["Total Group Campsite Expenses",{"$f":"+SUM(B58:B60)","v":0},{"$f":"+SUM(C58:C60)","v":0},0,0,0,0,0,0,0,0,0]
[]
["Food and Beverage"]
["Salaries and Wages"]
["Payroll Taxes and Benefits"]
["Other Departmental Expenses"]
["Total Food and Beverage Expenses",{"$f":"+SUM(B64:B66)","v":0},{"$f":"+SUM(C64:C66)","v":0},0,0,0,0,0,0,0,0,0]
[]
["Retail"]
["Salaries and Wages"]
["Payroll Taxes and Benefits"]
["Other Departmental Expenses"]
["Total Retail Expenses",{"$f":"+SUM(B70:B72)","v":0},{"$f":"+SUM(C70:C72)","v":0},0,0,0,0,0,0,0,0,{"$f":"+SUM(L70:L72)","v":0}]
[]
["Authorized Services Expenses (specify)"]
["Salaries and Wages"]
["Payroll Taxes and Benefits"]
["Other Departmental Expenses"]
["Total Other Expenses",{"$f":"+SUM(B76:B78)","v":0},{"$f":"+SUM(C76:C78)","v":0},0,0,0,0,0,0,0,0,0]
[]
["Other Departmental Expenses (Specify)"]
["Salaries and Wages"]
["Payroll Taxes and Benefits"]
["Other Departmental Expenses"]
["Total Other Expenses",{"$f":"+SUM(B82:B84)","v":0},{"$f":"+SUM(C82:C84)","v":0},0,0,0,0,0,0,0,0,{"$f":"+SUM(L82:L84)","v":0}]
[]
["Other Direct Expenses"]
["Utilities"]
["Repair and Maintenance Expense"]
["Operating Supplies"]
["Vehicle Expense"]
["Other Direct Expenses"]
[]
["Total Other Direct Expenses",{"$f":"SUM(B88:B92)","v":0},{"$f":"SUM(C88:C92)","v":0},0,0,0,0,0,0,0,0,0]
[]
["Total Direct Expenses",{"$f":"+SUM(B55,B61,B67,B73,B79,B85,B94)","v":0},{"$f":"+SUM(C55,C61,C67,C73,C79,C85,C94)","v":0},0,0,0,0,0,0,0,0,0]
[]
["Undistributed Expenses"]
["Other Salaries"]
["Office Supplies"]
["Phone / Internet etc."]
["Management / Overhead"]
["Advertising"]
["Other Admin"]
["Other Undistributed"]
[]
["Total Undistributed Expenses",{"$f":"SUM(B99:B105)","v":0},0,0,0,0,0,0,0,0,0,0]
[]
["Fixed Expenses"]
["Insurance"]
["Property Taxes"]
["Property Rental"]
["Other (specify)"]
[]
["Total Fixed Expenses",{"$f":"SUM(B110:B113)","v":0},{"$f":"SUM(C110:C113)","v":0},0,0,0,0,0,0,0,0,{"$f":"SUM(L110:L113)","v":0}]
[]
["Total Operating Expenses",{"$f":"B115+B107+B96+B44","v":0},0,0,0,0,0,0,0,0,0,0]
[]
["EBITDA Before FF",{"$f":"B33-B117","v":0},0,0,0,0,0,0,0,0,0,0]
[]
["Franchise Fee"]
[]
["EBITDA",{"$f":"B119-B121","v":0},{"$f":"C119-C121","v":0},0,0,0,0,0,0,0,0,{"$f":"L119-L121","v":0}]
[]
["Interest Expense"]
["Depreciation"]
["Amortization"]
[]
["Net Profit Before Taxes",{"$f":"B123-SUM(B125:B127)","v":0},{"$f":"C123-SUM(C125:C127)","v":0},0,0,0,0,0,0,0,{"$f":"K123-SUM(K125:K127)","v":0},{"$f":"L123-SUM(L125:L127)","v":0}]
[]
["Income Tax"]
[]
["Net Income",{"$f":"B129-B131","v":0},{"$f":"C129-C131","v":0},0,0,0,0,0,0,0,0,{"$f":"L129-L131","v":0}]
[]
["Notes"]
["1) Formulas included in this form are provided by the NPS as guidance only. The Offeror is responsible for its financial projections and their accuracy."]
["2) Yellow cells represent categories that need to be explained on the \"Income Statement Assumptions\" worksheet."]
["3) Only projected receipts and expenses related to the services “required” by the contract and those you choose to operate under “authorized” services are to be itemized and included in "]
["your prospective statements. Please clearly identify, by service type, all revenues associated with authorized services."]
["4) The NPS views the treatment of Component Renewal Reserve items as leasehold improvements. It is expected that the cost will be amortized over the shorter of "]
["the useful life of the asset or the contract term. "]
[]
["Definitions"]
["Gross Receipts"]
["Gross Revenues less any revenues that are exempt from franchise fee."]
["EBITDA Before FF "]
["Earnings Before Interest, Taxes, Depreciation, Amortization, and Franchise Fee."]
["Franchise Fee"]
["A percentage of gross receipts due to the National Park Service. "]

{"sheet":"Income Statement Assumptions","index":4,"n_rows":57,"n_cols":2,"rows_kept":57,"cut":false,"hidden":false,"merged":[]}
["INCOME STATEMENT ASSUMPTIONS"]
[]
["Grey Cells Are Input Cells"]
[]
["Name of Offeror"]
[]
["CONCID","OLYM001-27"]
[]
["Revenue"]
["See Operating Assumptions Tab"]
[]
["Cost of Sales (Provide for Each Department)"]
["All Applicable Departments\n","Describe"]
[]
["Direct Expenses (Provide for Each Department)"]
["Labor (Salaries and Wages)","Describe"]
["Payroll Taxes and Benefits","Describe"]
["Other Departmental Expenses","Describe"]
["Other Direct Expenses"]
["Utilities","Describe"]
["Repair and Maintenance Expense","Describe"]
["Operating Supplies","Describe"]
["Vehicles","Describe"]
["Other","Describe"]
["Undistributed Expenses"]
["Other Salaries","Describe"]
["Office Supplies","Describe"]
["Phone / Internet, etc.","Describe"]
["Management / Overhead","Describe"]
["Advertising","Describe"]
["Other Admin","Describe"]
["Other Undistributed","Describe"]
["Fixed Expenses"]
["Insurance","Describe"]
["Property Taxes","Describe"]
["Property Rental","Describe"]
["Other","Describe"]
[]
["Notes"]
["1) In the description sections of this form, please provide an explanation of sufficient detail to allow a reviewer to fully "]
["understand how the estimates were determined. "]
["2) If you are going to offer authorized services, please clearly identify which service(s) you will offer and use additional "]
["separate rows for each authorized service department. Labor costs should be supported by a footnote identifying Full "]
["Time Equivalents (FTE) occupied for each operating department identified."]
["3) Clearly describe the composition of each item classified under Undistributed and Fixed Expenses. If the expense item "]
["is allocated from or shared with a parent or related entity, please describe the allocation method. In particular, if you "]
["intend to assess a Management Fee, or other form of corporate overhead and profit, you must clearly describe what this "]
["fee is comprised of (Officer salaries, human resources, accounting, marketing, profit, etc.)."]
[]
["Expense Assumption Description Example"]
["***The following example does not reflect the above opportunity and is provided for the purpose of clarification only.***"]
["Direct expenses are expected to surpass historical direct expenses, as fuel and insurance prices increase. Studies by "]
["the Department of Commerce indicate that fuel prices will to rise at a rate of 10% annually over the next ten years, as "]
["opposed to the historical ten year rate of 4% annually. Additionally, insurance costs, according to a nationwide "]
["insurance broker survey, are expected to rise at 15% annually for the next 10 years, as opposed to the 10 year historical "]
["rate of 2% annually. Accordingly, direct expenses associated with the operation are forecast to increase from an annual "]
["average of 10% of Gross Revenue to an annual average of 20% of Gross Revenues over the life of the Draft Contract."]

{"sheet":"Operating Assumptions Form","index":5,"n_rows":91,"n_cols":15,"rows_kept":91,"cut":false,"hidden":false,"merged":[[77,14,78,14],[10,14,11,14],[15,14,20,14],[60,14,61,14],[72,14,73,14],[65,14,66,14],[25,14,30,14]]}
["OPERATING ASSUMPTIONS"]
[]
["Grey Cells Are Input Cells"]
[]
["Name of Offeror"]
[]
["CONCID","OLYM001-27"]
[]
[null,null,"2027 (P)",2028,{"$f":"D9+1","v":2029},{"$f":"E9+1","v":2030},2031,2032,2033,2034,2035,2036,"2037 (P)"]
[]
["Revenue Inflation",null,{"$f":"'Income Statement Form'!C35/'Income Statement Form'!B35-1","v":{"$error":"#DIV/0!"}},{"$f":"'Income Statement Form'!D35/'Income Statement Form'!C35-1","v":{"$error":"#DIV/0!"}},{"$f":"'Income Statement Form'!E35/'Income Statement Form'!D35-1","v":{"$error":"#DIV/0!"}},{"$f":"'Income Statement Form'!F35/'Income Statement Form'!E35-1","v":{"$error":"#DIV/0!"}},{"$f":"'Income Statement Form'!G35/'Income Statement Form'!F35-1","v":{"$error":"#DIV/0!"}},{"$f":"'Income Statement Form'!H35/'Income Statement Form'!G35-1","v":{"$error":"#DIV/0!"}},{"$f":"'Income Statement Form'!I35/'Income Statement Form'!H35-1","v":{"$error":"#DIV/0!"}},{"$f":"'Income Statement Form'!J35/'Income Statement Form'!I35-1","v":{"$error":"#DIV/0!"}},{"$f":"'Income Statement Form'!K35/'Income Statement Form'!J35-1","v":{"$error":"#DIV/0!"}},{"$f":"'Income Statement Form'!K35/'Income Statement Form'!J35-1","v":{"$error":"#DIV/0!"}},{"$f":"'Income Statement Form'!L35/'Income Statement Form'!K35-1","v":{"$error":"#DIV/0!"}},null,"Additional Description"]
["Expense Inflation",null,{"$f":"'Income Statement Form'!C117/'Income Statement Form'!B117-1","v":{"$error":"#DIV/0!"}},{"$f":"'Income Statement Form'!D117/'Income Statement Form'!C117-1","v":{"$error":"#DIV/0!"}},{"$f":"'Income Statement Form'!E117/'Income Statement Form'!D117-1","v":{"$error":"#DIV/0!"}},{"$f":"'Income Statement Form'!F117/'Income Statement Form'!E117-1","v":{"$error":"#DIV/0!"}},{"$f":"'Income Statement Form'!G117/'Income Statement Form'!F117-1","v":{"$error":"#DIV/0!"}},{"$f":"'Income Statement Form'!H117/'Income Statement Form'!G117-1","v":{"$error":"#DIV/0!"}},{"$f":"'Income Statement Form'!I117/'Income Statement Form'!H117-1","v":{"$error":"#DIV/0!"}},{"$f":"'Income Statement Form'!J117/'Income Statement Form'!I117-1","v":{"$error":"#DIV/0!"}},{"$f":"'Income Statement Form'!K117/'Income Statement Form'!J117-1","v":{"$error":"#DIV/0!"}},{"$f":"'Income Statement Form'!K117/'Income Statement Form'!J117-1","v":{"$error":"#DIV/0!"}},{"$f":"'Income Statement Form'!L117/'Income Statement Form'!K117-1","v":{"$error":"#DIV/0!"}}]
[]
["Lodging"]
["Kalaloch Lodge"]
["Number of Available Rooms",null,null,null,null,null,null,null,null,null,null,null,null,null,"Additional Description"]
["Days Open per Season"]
["Available Room Nights"]
["Occupied Room Nights"]
["Occupancy %"]
["Average Daily Rate"]
["TOTAL LODGING REVENUE",{"$f":"B21*B19","v":0},{"$f":"C21*C19","v":0},0,0,0,0,0,0,0,0,{"$f":"L21*L19","v":0},0]
[]
["Group Campsite"]
["Group Campsite"]
["Number of Available Sites",null,null,null,null,null,null,null,null,null,null,null,null,null,"Additional Description"]
["Days Open per Season"]
["Available Site Nights"]
["Occupied Site Nights"]
["Occupancy %"]
["Average Daily Rate"]
["TOTAL GROUP CAMPSITE REVENUE",{"$f":"B31*B29","v":0},{"$f":"C31*C29","v":0},0,0,0,0,0,0,0,0,0,0]
[]
["Food & Beverage"]
["Breakfast"]
["Total Covers",null,null,null,null,null,null,null,null,null,null,null,null,null,"Additional Description"]
["Average Check"]
["Breakfast Revenue",{"$f":"B36*B37","v":0},{"$f":"C36*C37","v":0},0,0,0,0,0,0,0,0,{"$f":"L36*L37","v":0},0]
[]
["Lunch"]
["Total Covers",null,null,null,null,null,null,null,null,null,null,null,null,null,"Additional Description"]
["Average Check"]
["Lunch Revenue",{"$f":"B41*B42","v":0},{"$f":"C41*C42","v":0},0,0,0,0,0,0,0,0,{"$f":"L41*L42","v":0},0]
[]
["Dinner"]
["Total Covers",null,null,null,null,null,null,null,null,null,null,null,null,null,"Additional Description"]
["Average Check"]
["Dinner Revenue",{"$f":"+B46*B47","v":0},{"$f":"+C46*C47","v":0},0,0,0,0,0,0,0,0,{"$f":"+L46*L47","v":0},0]
[]
["Grab and Go"]
["Total Covers",null,null,null,null,null,null,null,null,null,null,null,null,null,"Additional Description"]
["Average Check"]
["Grab and Go Revenue",{"$f":"+B51*B52","v":0},{"$f":"+C51*C52","v":0},0,0,0,0,0,0,0,0,{"$f":"+L51*L52","v":0},0]
[]
["Alcoholic Beverage Revenue"]
[]
["TOTAL FOOD & BEVERAGE REVENUE",{"$f":"SUM(B38,B43,B48,B53,B55)","v":0},{"$f":"SUM(C38,C43,C48,C53,C55)","v":0},0,0,0,0,0,0,0,0,{"$f":"SUM(L38,L43,L48,L53,L55)","v":0},0]
[]
["Retail"]
["Gift Shop"]
["Total Transactions",null,null,null,null,null,null,null,null,null,null,null,null,null,"Additional Description"]
["Average Revenue Per Transaction"]
["Gift Shop Revenue",{"$f":"B61*B62","v":0},{"$f":"C61*C62","v":0},0,0,0,0,0,0,0,0,{"$f":"L61*L62","v":0},0]
[]
["Mercantile"]
["Total Transactions",null,null,null,null,null,null,null,null,null,null,null,null,null,"Additional Description"]
["Average Revenue Per Transaction"]
["Mercantile Revenue",{"$f":"B66*B67","v":0},{"$f":"C66*C67","v":0},0,0,0,0,0,0,0,0,{"$f":"L66*L67","v":0},0]
[]
["TOTAL RETAIL REVENUE",{"$f":"B63+B68","v":0},{"$f":"C63+C68","v":0},0,0,0,0,0,0,0,0,{"$f":"L63+L68","v":0},0]
[]
["Other (describe)"]
["Number of Customers",null,null,null,null,null,null,null,null,null,null,null,null,null,"Additional Description"]
["Average Revenue Per Customer"]
["Other Revenue",{"$f":"B73*B74","v":0},{"$f":"C73*C74","v":0},0,0,0,0,0,0,0,0,{"$f":"L73*L74","v":0},0]
[]
["Other (describe)"]
["Number of Customers",null,null,null,null,null,null,null,null,null,null,null,null,null,"Additional Description"]
["Average Revenue Per Customer"]
["Other Revenue",{"$f":"B78*B79","v":0},{"$f":"C78*C79","v":0},0,0,0,0,0,0,0,0,{"$f":"L78*L79","v":0},0]
[]
["Notes"]
["1) Please note that revenue projections must be based on rates determined by the approval methods set forth in the draft Operating Plan. "]
["2) The information on this form should fully explain and document your Gross Revenue build-up. State annual inflation rate assumptions, rate increase assumptions, utilization assumptions and any estimates of real "]
["growth you anticipate. If you have any additional descriptions of your assumptions, please use the \"Additional Description\" boxes to the right of each revenue department."]
["3) If you are going to offer authorized services, please clearly identify which service(s) you will offer and use additional rows to describe your revenue buildup for each authorized service."]
[]
["Revenue Assumption Description Example"]
["***The following example does not reflect the above opportunity and is provided for the purpose of clarification only.***"]
["Revenue inflation is expected increase at the same rate as the Consumer Price Index which is predicted to grow at a rate of 2.7% annually, based upon historical growth as reported by the Bureau of Labor Statistics "]
["No real growth is expected to occur, keeping in line with historical revenues at the concession. Therefore, overall revenue growth is forecast to occur at an average annual rate of 2.7% over the life of the Draft Contract."]

{"sheet":"Cash Flow Statement Form","index":6,"n_rows":56,"n_cols":12,"rows_kept":56,"cut":false,"hidden":false,"merged":[]}
["CASH FLOW STATEMENT FORM"]
[]
["Grey Cells Are Input Cells"]
[]
["Name of Offeror"]
[]
["CONCID","OLYM001-27"]
[]
["Prospective Cash Flow Statement"]
[]
["Operating Activities","Year Zero (2027 P)",2028,{"$f":"+C11+1","v":2029},{"$f":"D11+1","v":2030},2031,2032,2033,2034,2035,2036,"2037 (P)"]
["Net Income"]
["Depreciation"]
["Amortization"]
["Change in working capital"]
["Other (describe)"]
[]
["Net Cash Provided (Used) by Operating Activities",null,{"$f":"C12+C13+C14+C16","v":0},0,0,0,0,0,0,0,0,0]
[]
["Financing Activities"]
["Dividend"]
["Sale/Repurchase of Stock"]
["Borrowings/ Repayment of Debt"]
["Other (describe)"]
[]
["Net Cash Provided (Used) by Financing Activities",{"$f":"SUM(B21:B24)","v":0},{"$f":"SUM(C21:C24)","v":0},{"$f":"SUM(D21:D24)","v":0},{"$f":"SUM(E21:E24)","v":0},0,0,0,0,0,0,0]
[]
["Investment Activities"]
["Leasehold Surrender Interest"]
["Component Renewal Reserve"]
["Personal Property Replacement"]
["Deferred Maintenance "]
["Concessioner Facility Improvement Program (CFIP)"]
["Real Property (not Within Park)"]
["Inventory and Supplies"]
["Start-Up Expenses"]
["Working Capital"]
["Other (describe)"]
["Other (describe)"]
["Other (describe)"]
[]
["Net Cash Provided (Used) by Investing Activities",{"$f":"SUM(B29:B40)","v":0},{"$f":"SUM(C29:C40)","v":0},0,0,0,0,0,0,0,0,0]
[]
["Total Cash Flow",{"$f":"B18+B26+B42","v":0},{"$f":"C18+C26+C42","v":0},{"$f":"D18+D26+D42","v":0},{"$f":"E18+E26+E42","v":0},{"$f":"F18+F26+F42","v":0},{"$f":"G18+G26+G42","v":0},0,0,0,0,0]
[]
["Internal Rate of Return"]
[]
["Notes"]
["1) Formulas included in this form are provided by the NPS as guidance only. The Offeror is responsible for its financial projections and their accuracy."]
["2) Yellow cells represent categories that need to be explained on the \"Cash Flow Statement Assumptions\" worksheet."]
["3) Investment activities should include entries for one time acquisition and disposal at the beginning and end of the Draft Contract term as well as cyclical or annual capital investments "]
["such as replacement. "]
["4) Estimates for capital expenditures in the Cash Flow Statements made prior to or during the first year after the start of the Draft Contract should be reflective of estimates provide in the Initial "]
["Investment and Start-up Costs form."]
["5) Clearly delineate between personal and real property and define your rationale and assumptions for each category. "]
["6) Since Component Renewal Reserve activities are considered capital expenditures they should be included on the cash flow statement."]

{"sheet":"Cash Flow Statement Assumptions","index":7,"n_rows":24,"n_cols":2,"rows_kept":24,"cut":false,"hidden":false,"merged":[[21,0,21,1]]}
["CASH FLOW STATEMENT ASSUMPTIONS"]
[]
["Grey Cells Are Input Cells"]
[]
["Name of Offeror",""]
[]
["CONCID","OLYM001-27"]
[]
["Operating Activities"]
["Depreciation","Describe"]
["Amortization","Describe"]
["Other (describe)","Describe"]
["Financing Activities"]
["Other (describe)","Describe"]
["Investment Activities"]
["Leasehold Surrender Interest","Describe - LSI occurring during the Draft Contract"]
["Component Renewal Reserve ","Describe - Component Renewal Reserve expenditures during the Draft Contract"]
["Personal Property Replacement","Describe - Personal property replacement during the Draft Contract "]
["Other (describe)","Describe"]
["Other (describe)","Describe"]
["Other (describe)","Describe"]
["Notes"]
["1) In the description sections of this form, please provide an explanation of sufficient detail to allow a reviewer to fully understand how"]
[" the estimates were determined."]

{"sheet":" Recapture of Investment Form","index":8,"n_rows":31,"n_cols":4,"rows_kept":31,"cut":false,"hidden":false,"merged":[]}
["RECAPTURE OF INVESTMENT FORM"]
[]
["Grey Cells Are Input Cells"]
[]
["Name of Offeror"]
[]
["CONCID","OLYM001-27"]
[]
["Assets and Other"]
[]
[null,"CFIP Leasehold Surrender Interest Value"]
[null,"Real Property (not within the Park)"]
[null,"Personal  Property"]
[null,"Inventory and Supplies"]
[null,"Working Capital"]
[null,"Fixtures LSI Recovery"]
[null,"Other (describe)"]
[null,"Other (describe)"]
[]
[null,"Total of Recapture of Investments at the End of the Contract Term",null,{"$f":"SUM(D11:D18)","v":0}]
[]
["Notes"]
["1) The value of ending LSI is only a best guess estimate neither offeror nor the NPS is bound by the number presented above."]
["2) Reference the Draft Contract and exhibits for guidance on Leasehold Surrender Interest and Personal Property."]
["3) Formulas included in this form are provided by the NPS as guidance only. The Offeror is responsible for its financial "]
["projections and their accuracy."]
["4) Yellow cells represent categories that need to be explained on the \"Recapture of Investment Assumptions\" worksheet."]
["5) All Offerors must include their estimate of the ending value of all property and other assets at the end of the Draft Contract."]
["6) Recapture amounts entered into this form should not be included in the proforma income statement. "]
["7) Recapture amounts entered in this form should be included in the cash flow proforma as capital recapture in the final year "]
["of the Draft Contract."]

{"sheet":"Recapture of Inv Assumptions","index":9,"n_rows":24,"n_cols":2,"rows_kept":24,"cut":false,"hidden":false,"merged":[]}
["RECAPTURE OF INVESTMENT ASSUMPTIONS"]
[]
["Grey Cells Are Input Cells"]
[]
["Name of Offeror"]
[]
["CONCID","OLYM001-27"]
[]
["Assets and Other"]
["Please describe the method used to determine the values of the planned recoup of investments at the "]
["end of the Draft Contract."]
[]
["Leasehold Surrender Interest Value","Describe"]
["Real Property (not within the Park)","Describe"]
["Personal Property","Describe"]
["Inventory and Supplies","Describe"]
["Working Capital","Describe"]
["Other (describe)","Describe"]
["Other (describe)","Describe"]
["Other (describe)","Describe"]
[]
["Notes"]
["1) In the description sections of this form, please provide an explanation of sufficient detail to allow a "]
["reviewer to fully understand how the estimates were determined. "]